bitfinex/quotes_ETHUSD_20220218
["timestamp","ask_amount","ask_price","bid_price","bid_amount"]
[1645147980407,0.86830217,2890.5,2890.3,0.5]
[1645147981007,0.86830217,2890.5,2890.4,0.3]
[1645147981208,0.86521,2890.5,2888.9,0.13819997]
[1645147981409,4.36521,2890.5,2888.9,0.13819997]
[1645147981614,4.36830217,2890.5,2890.2,9.251e-05]
[1645147981815,1.416,2890.4,2890.2,9.251e-05]
[1645147982112,1.416,2890.4,2888.5,1.9578]
[1645147982113,6.5,2890.2,2888.5,1.9578]
[1645147982408,2.59621,2890.6,2888.5,1.9578]
[1645147982409,1.73131,2889.8,2888.5,1.9578]
[1645147982608,1.73131,2889.8,2888.0,0.86563]
[1645147982808,1.73131,2889.8,2887.6,3.4488]
[1645147982809,3.916,2889.7,2887.6,3.4488]
[1645147983010,1.12584611,2889.4,2888.4,0.95330128]
[1645147983209,1.12584611,2889.4,2889.2,0.5]
[1645147983442,1.73156,2889.4,2889.2,0.5]
[1645147983642,2.59733,2889.4,2889.2,0.5]
[1645147983846,2.59733,2889.4,2889.2,0.00129935]
[1645147984045,0.416,2889.3,2889.2,0.00129935]
[1645147984945,0.416,2889.3,2888.3,0.86558]
[1645147985245,0.00485631,2889.2,2889.1,0.00309071]
[1645147985444,0.87039631,2889.3,2889.1,0.00309071]
[1645147986046,0.87039631,2889.3,2888.4,0.83892754]
[1645147986347,0.87039631,2889.3,2889.1,0.00309073]
[1645147986547,0.87039631,2889.3,2889.1,0.30309073]
[1645147987193,0.87039631,2889.3,2887.9,0.1729]
[1645147987194,6.0,2889.2,2887.9,0.1729]
[1645147987400,0.86591,2888.8,2887.8,0.1729]
[1645147987595,0.42085631,2888.7,2887.5,4.46508983]
[1645147988192,0.42085631,2888.7,2888.5,0.5]
[1645147988592,0.42085631,2888.7,2887.5,4.46508983]
[1645147988593,1.73176,2888.6,2887.5,4.46508983]
[1645147988792,0.00485631,2888.5,2888.3,0.5]
[1645147989593,1.73176,2888.6,2888.3,0.5]
[1645147989594,1.69686142,2888.6,2888.3,0.5]
[1645147989792,1.69686142,2888.6,2888.0,0.97163169]
[1645147989997,1.69686142,2888.6,2888.3,0.5]
[1645147990203,2.59752,2889.1,2888.3,0.5]
[1645147990396,3.46319,2889.6,2888.1,3.5]
[1645147990397,0.41779254,2890.2,2888.4,0.1731]
[1645147990596,0.86534,2889.9,2888.4,0.55486106]
[1645147990800,2.9378,2890.4,2889.4,0.5]
[1645147991044,2.006,2890.9,2889.7,0.99692628]
[1645147991045,2.11691588,2890.8,2889.7,0.99692628]
[1645147991246,0.0017931,2890.2,2889.4,0.5]
[1645147991447,0.0017931,2890.2,2889.4,0.8]
[1645147991746,1.73095,2890.1,2889.4,0.8]
[1645147991946,2.03095,2890.1,2889.4,0.8]
[1645147992161,1.1654,2890.1,2889.5,0.16711015]
[1645147992344,0.8654,2890.1,2889.5,0.16711015]
[1645147992550,1.73387761,2890.2,2889.5,0.16711015]
[1645147992551,0.00308761,2890.2,2889.5,0.16711015]
[1645147992747,0.86835761,2890.2,2889.8,0.86453242]
[1645147992944,0.86835761,2890.2,2889.8,0.15264046]
[1645147993146,0.86835761,2890.2,2889.5,0.166622]
[1645147993345,0.86527,2890.2,2889.5,0.166622]
[1645147993848,0.86835777,2890.2,2889.5,0.166622]
[1645147994451,0.86527,2890.2,2889.5,0.166622]
[1645147994896,1.16835767,2890.2,2889.5,0.166622]
[1645147995801,1.16527,2890.2,2889.5,0.166622]
[1645147995997,1.16835767,2890.2,2889.5,0.166622]
[1645147996696,1.16835767,2890.2,2890.0,0.5]
[1645147996697,2.03380767,2890.2,2890.0,0.5]
[1645147996899,2.03380767,2890.2,2889.4,0.3]
[1645147996900,1.16545,2890.2,2890.1,0.02472961]
[1645147997105,0.86565,2889.7,2889.0,0.00308896]
[1645147997307,20.696,2889.6,2889.0,0.00308896]
[1645147997502,20.696,2889.6,2888.4,0.15517159]
[1645147997503,1.0284612,2888.8,2888.4,0.15517159]
[1645147997707,1.0284612,2888.8,2887.7,1.04700676]
[1645147997708,0.86596,2888.6,2887.8,3.5]
[1645147997898,0.86596,2888.6,2888.3,0.5]
[1645147998098,0.86596,2888.6,2888.4,0.131486]
[1645147998099,3.46375,2888.6,2888.4,0.131486]
[1645147998298,2.59779,2888.6,2888.4,0.131486]
[1645147999151,2.59779,2888.6,2887.3,3.63819997]
[1645147999356,2.59779,2888.6,2886.6,0.86614]
[1645147999357,0.416,2888.5,2886.6,0.86614]
[1645147999557,0.86619,2888.0,2886.6,0.15943244]
[1645147999751,0.86623,2887.6,2887.0,0.93153268]
[1645147999952,0.86623,2887.6,2887.0,1.06549115]
[1645148000152,0.416,2888.1,2887.0,1.06549115]
[1645148000554,0.416,2888.1,2887.0,1.93151115]
[1645148000555,0.86622,2887.6,2887.0,1.93151115]
[1645148000759,0.416,2888.4,2887.6,0.7088964]
[1645148000956,0.416,2888.4,2887.6,0.90647524]
[1645148001154,1.1518,2889.2,2887.9,1.17272483]
[1645148001353,0.40535524,2889.3,2887.9,1.35567982]
[1645148001354,0.416,2889.1,2887.9,1.35567982]
[1645148001553,0.416,2889.1,2887.9,1.65567982]
[1645148001554,0.86587,2888.4,2887.9,1.65567982]
[1645148001753,0.86587,2888.4,2888.0,0.19642975]
[1645148002594,0.86567,2888.6,2888.0,0.19642975]
[1645148003390,0.86567,2888.6,2888.2,0.00308429]
[1645148003791,0.3,2888.5,2888.2,0.00308429]
[1645148003992,1.73209,2888.4,2888.2,0.00308429]
[1645148004190,1.73209,2888.4,2888.0,0.19642975]
[1645148004391,1.73209,2888.4,2888.2,0.00308427]
[1645148004591,0.86609,2888.3,2888.2,0.00308427]
[1645148004794,1.73209,2888.4,2888.2,0.00308427]
[1645148004999,0.00483203,2888.4,2888.2,0.00308427]
[1645148005197,0.00483203,2888.4,2888.2,0.86875427]
[1645148005401,1.731,2889.5,2888.2,0.15112474]
[1645148005402,0.00483203,2888.7,2888.2,0.15112474]
[1645148005596,0.00483203,2889.0,2888.1,0.6743235]
[1645148005796,0.00483203,2889.4,2888.4,2.21334406]
[1645148006052,2.75739753,2889.9,2888.5,0.19202792]
[1645148006053,0.86592,2888.8,2888.5,0.19202792]
[1645148006247,0.87075203,2888.8,2888.5,0.19202792]
[1645148006446,0.87075203,2888.8,2888.5,0.69202792]
[1645148006447,2.55264203,2888.8,2888.5,0.69202792]
[1645148006645,2.55264203,2888.8,2888.6,0.19167456]
[1645148006848,2.85264203,2888.8,2888.6,0.49167456]
[1645148007146,2.85264203,2888.8,2888.7,0.1685561]
[1645148008060,0.30483203,2888.8,2888.7,0.1685561]
[1645148008651,0.00179795,2889.3,2888.7,3.6685561]
[1645148008652,0.00483203,2889.2,2888.7,3.6685561]
[1645148008851,0.00179795,2889.3,2888.7,5.3993461]
[1645148009051,0.00483203,2889.8,2888.9,1.07655281]
[1645148009251,0.00483203,2889.8,2888.9,4.7107182]
[1645148009699,0.00483203,2889.8,2889.6,0.5]
[1645148009901,0.00483203,2889.8,2889.7,0.43963433]
[1645148010102,0.00483203,2889.8,2889.7,0.3]
[1645148011607,0.00483203,2889.8,2889.7,0.25]
[1645148012305,0.983958,2889.9,2889.7,0.25]
[1645148012504,0.3,2889.8,2889.7,0.2]
[1645148012812,1.16545,2889.8,2889.6,0.5]
[1645148013641,1.14989665,2889.7,2889.6,0.5]
[1645148013841,1.14989665,2889.7,2889.6,1.3541]
[1645148014047,1.14989665,2889.7,2888.6,0.04231636]
[1645148014048,0.86568,2889.5,2888.6,0.04231636]
[1645148014246,0.86568,2889.5,2888.1,0.00308037]
[1645148014443,0.86568,2889.5,2888.1,0.30308037]
[1645148014644,0.86568,2889.5,2888.1,0.00308037]
[1645148014844,1.04454539,2888.8,2888.1,0.00308037]
[1645148015147,1.04454539,2888.8,2887.6,0.7088964]
[1645148015148,1.73173,2888.7,2887.6,0.7088964]
[1645148015342,0.86582,2888.7,2888.1,0.00307981]
[1645148015945,0.00307853,2889.3,2888.1,0.00307981]
[1645148016148,0.3,2889.8,2888.1,0.00307981]
[1645148016149,0.3,2889.8,2888.1,0.5]
[1645148016348,0.3,2889.8,2888.2,25.25616982]
[1645148016549,0.00307828,2889.3,2888.5,0.86543]
[1645148016745,0.00307828,2889.3,2888.8,1.01293071]
[1645148016946,0.00307828,2889.3,2888.9,3.5]
[1645148017395,0.16079753,2889.9,2889.0,1.0]
[1645148017593,0.85879487,2890.8,2889.4,0.5]
[1645148017800,10.21436268,2891.2,2889.4,0.5]
[1645148017801,0.01190674,2889.7,2889.5,3.5]
[1645148017997,0.416,2891.5,2889.5,3.5]
[1645148017998,0.85879487,2891.5,2889.6,33.67139272]
[1645148018193,0.85879487,2891.8,2889.9,25.28]
[1645148018396,0.85879487,2891.9,2890.0,26.67139272]
[1645148018592,0.85879487,2891.9,2890.0,25.836]
[1645148018796,0.85879487,2892.3,2890.6,20.28]
[1645148019099,0.85879487,2892.3,2890.8,1.72908]
[1645148019297,3.5,2892.2,2890.7,1.0]
[1645148019497,3.5,2892.2,2890.8,0.3]
[1645148019698,0.85879487,2892.1,2890.8,0.3]
[1645148019897,0.85879487,2892.3,2890.7,0.3]
[1645148020099,3.45354487,2892.3,2890.8,0.86488]
[1645148020300,3.45354487,2892.3,2890.8,0.3]
[1645148020301,0.00178396,2891.6,2890.8,0.3]
[1645148020495,0.00178396,2891.6,2890.9,0.14988436]
[1645148020702,0.00178396,2891.6,2891.3,0.5]
[1645148020961,0.85879487,2892.2,2891.4,0.18973647]
[1645148021160,0.85879487,2892.3,2891.4,0.18973647]
[1645148021370,0.00307501,2891.6,2891.4,1.18973647]
[1645148021767,0.00307501,2891.6,2891.4,0.68973647]
[1645148021972,0.00307501,2891.6,2890.2,0.136]
[1645148021973,0.01260476,2891.5,2889.8,0.1729]
[1645148022167,0.24526252,2891.3,2890.1,0.19998353]
[1645148022468,0.24526252,2891.3,2890.2,0.1729]
[1645148022664,0.24526252,2891.3,2889.7,0.13819997]
[1645148022665,0.86517,2891.2,2890.0,0.34230197]
[1645148022865,0.86517,2891.2,2890.7,0.5]
[1645148023063,0.86517,2891.2,2890.8,0.15615203]
[1645148023265,0.86517,2891.2,2890.8,0.32905203]
[1645148023469,0.24526252,2891.3,2890.8,0.32905203]
[1645148023665,0.00307521,2891.1,2890.8,0.32905203]
[1645148024167,0.00307521,2891.1,2891.0,0.19400957]
[1645148024365,0.00307521,2891.1,2891.0,0.4729]
[1645148024563,0.24526252,2891.3,2891.1,3.50396401]
[1645148024796,0.24526252,2891.3,2891.2,1.0]
[1645148025194,0.24526252,2891.3,2891.2,0.3]
[1645148025803,0.19526252,2891.3,2891.2,0.3]
[1645148026502,0.19526252,2891.3,2891.1,0.50396401]
[1645148027500,0.19526252,2891.3,2891.2,0.3]
[1645148028750,0.19526252,2891.3,2891.2,1.31834839]
[1645148029354,0.19526252,2891.3,2891.2,0.3]
[1645148030957,0.19526252,2891.3,2891.2,0.4729]
[1645148031156,0.00308654,2891.4,2891.3,5.5]
[1645148031357,0.00308654,2891.4,2891.3,6.6729]
[1645148031654,0.00308654,2891.4,2891.3,7.78148424]
[1645148031854,0.00480787,2892.8,2891.3,7.78148424]
[1645148032053,0.00480787,2892.8,2891.4,0.1728]
[1645148032292,0.00308649,2891.5,2891.4,1.4728]
[1645148032493,0.00308649,2891.5,2891.4,1.9728]
[1645148032699,0.00308649,2891.5,2891.4,2.83741]
[1645148032892,0.00308649,2891.5,2891.4,6.33741]
[1645148033095,0.042855,2892.9,2891.5,2.5]
[1645148033295,0.00629632,2892.0,2891.7,0.5]
[1645148033594,0.00629632,2892.0,2891.8,0.4728]
[1645148033799,0.00629632,2892.0,2891.8,0.8]
[1645148034196,0.86466,2892.8,2891.8,0.8]
[1645148034395,0.00480787,2892.7,2892.4,1.07833013]
[1645148034596,0.00480787,2892.7,2892.4,1.2276122]
[1645148034795,0.042855,2892.9,2892.5,0.18697815]
[1645148035195,0.042855,2892.9,2891.9,0.14066498]
[1645148035196,0.907485,2892.9,2891.9,0.14066498]
[1645148035398,5.65051787,2892.8,2891.9,0.14066498]
[1645148035595,5.65051787,2892.8,2891.1,0.00396401]
[1645148035596,5.0,2892.6,2892.3,0.15153628]
[1645148035796,3.5,2892.7,2891.1,0.00396401]
[1645148035797,1.73003,2892.0,2891.1,0.00396401]
[1645148036056,2.61961107,2892.0,2891.1,0.00396401]
[1645148036254,0.8651,2891.8,2891.1,0.00396401]
[1645148036457,0.42080787,2891.7,2891.1,0.00396401]
[1645148036659,0.00480787,2891.7,2891.1,0.00396401]
[1645148036856,0.00480787,2891.8,2891.1,0.00396401]
[1645148037154,0.00480787,2891.8,2891.4,0.64902208]
[1645148037353,0.42080787,2892.4,2891.4,0.94902208]
[1645148037553,0.72080787,2892.4,2891.5,0.15698959]
[1645148037754,0.72080787,2892.4,2891.6,1.37983238]
[1645148037953,0.72080787,2892.4,2891.7,0.18809851]
[1645148038154,0.00295325,2892.1,2891.7,0.18809851]
[1645148039154,0.86951787,2892.7,2891.7,0.18809851]
[1645148039354,0.00295327,2892.0,2891.7,0.18809851]
[1645148040194,1.73241327,2892.0,2891.7,0.18809851]
[1645148040392,1.73241327,2892.0,2891.4,0.69163322]
[1645148040393,0.86514,2891.8,2891.4,0.69163322]
[1645148040594,0.00480787,2891.7,2891.4,0.69163322]
[1645148040792,0.3,2891.6,2891.4,0.69163322]
[1645148041195,0.00480787,2891.7,2891.4,0.69163322]
[1645148041501,0.00480787,2891.7,2891.5,0.13535889]
[1645148041694,4.63012787,2891.8,2891.5,0.13535889]
[1645148041895,0.00290452,2891.7,2891.5,0.13535889]
[1645148042496,0.00290452,2891.7,2891.5,0.30825889]
[1645148042694,0.86473,2892.5,2891.6,0.18819341]
[1645148042895,0.00480787,2892.4,2891.6,0.18819341]
[1645148043095,0.0029045,2891.7,2891.6,0.18819341]
[1645148043952,0.042855,2892.9,2891.6,0.36109341]
[1645148043953,1.73407787,2892.8,2891.6,0.36109341]
[1645148044252,0.86464,2892.4,2891.6,0.36109341]
[1645148044547,0.86471,2892.2,2892.0,0.5]
[1645148044747,0.86471,2892.2,2892.1,0.49175598]
[1645148044945,0.86471,2892.2,2892.1,0.3]
[1645148045347,0.86471,2892.2,2892.0,0.5]
[1645148045549,5.0,2892.1,2892.0,0.0001]
[1645148045749,0.72080787,2892.1,2892.0,0.0001]
[1645148045946,0.72080787,2892.1,2891.1,0.00396401]
[1645148046148,0.86493,2891.9,2891.1,0.00396401]
[1645148046347,0.00480787,2891.8,2891.1,0.00396401]
[1645148046547,1.09536061,2891.6,2891.1,0.00396401]
[1645148046751,2.26514848,2891.6,2891.1,0.00396401]
[1645148046951,2.26034061,2891.6,2891.1,0.00396401]
[1645148047193,0.86493,2891.5,2891.1,0.00396401]
[1645148049001,2.59519,2891.4,2891.1,0.00396401]
[1645148049405,0.3,2891.4,2891.1,0.00396401]
[1645148049602,0.0029082,2891.6,2891.4,0.38555486]
[1645148050001,0.944437,2891.7,2891.4,0.38555486]
[1645148050207,0.00290833,2891.6,2891.4,0.38555486]
[1645148051046,0.00290833,2891.6,2891.4,0.68555486]
[1645148051246,1.18140289,2892.3,2891.4,0.68555486]
[1645148051445,0.00290833,2891.6,2891.4,0.68555486]
[1645148051648,5.5,2891.5,2891.1,0.00396401]
[1645148051849,5.5,2891.5,2890.4,0.00290961]
[1645148051850,3.0,2891.4,2890.4,0.00290961]
[1645148052057,25.28,2891.2,2890.4,0.00290961]
[1645148052251,25.28,2891.2,2889.4,1.5197]
[1645148052252,20.28,2890.3,2889.2,7.4729]
[1645148052447,20.28,2890.3,2888.5,0.1729]
[1645148052448,5.0,2890.0,2888.5,0.1729]
[1645148052647,0.88462682,2889.3,2888.6,1.47531825]
[1645148052850,0.88462682,2889.3,2888.7,1.47531825]
[1645148052851,0.86576,2889.2,2888.7,1.47531825]
[1645148053047,0.86576,2889.2,2888.8,1.47531825]
[1645148053249,2.03147,2889.3,2888.9,1.47531825]
[1645148053250,0.3,2889.3,2888.9,1.47531825]
[1645148053447,2.59702,2889.8,2889.0,1.47545318]
[1645148053648,2.59702,2889.8,2888.4,3.6729]
[1645148053848,2.89702,2889.8,2888.5,1.47541508]
[1645148054149,0.86549,2889.6,2888.5,1.47541508]
[1645148054352,0.95078763,2889.3,2888.6,1.47541508]
[1645148054553,1.7315,2889.3,2888.7,1.47541508]
[1645148054805,0.3,2889.8,2888.8,1.47541508]
[1645148055006,0.3,2889.8,2888.9,1.47541508]
[1645148055206,0.86555,2889.4,2889.0,1.47541508]
[1645148055508,0.86555,2889.4,2888.7,7.63635454]
[1645148055509,1.16555,2889.4,2888.7,7.63635454]
[1645148055704,1.16555,2889.4,2888.8,1.47559286]
[1645148055905,1.16555,2889.4,2888.8,1.62607083]
[1645148056108,1.16555,2889.4,2889.2,0.5]
[1645148056408,2.59686,2889.4,2889.3,0.16155262]
[1645148056609,1.16555,2889.4,2889.3,0.16155262]
[1645148059249,0.3,2889.4,2889.3,0.16155262]
[1645148059649,2.7503,2890.7,2889.3,0.16155262]
[1645148059852,2.7503,2890.7,2889.6,0.18485797]
[1645148059853,6.2503,2890.7,2889.6,0.18485797]
[1645148060046,0.86536,2890.6,2889.6,0.18485797]
[1645148060247,21.14536,2890.6,2889.7,0.17228222]
[1645148060448,0.8653,2890.4,2889.7,0.17228222]
[1645148060848,1.94693309,2890.1,2889.7,0.17228222]
[1645148061057,1.94693309,2890.1,2889.7,0.00309545]
[1645148061058,22.22693309,2890.1,2889.7,0.00309545]
[1645148061254,0.416,2890.0,2889.7,0.00309545]
[1645148061453,20.28,2889.9,2889.7,0.00309545]
[1645148061657,20.28,2889.9,2888.2,0.65327764]
[1645148061658,0.01200246,2889.8,2888.2,0.65327764]
[1645148061955,0.01200246,2889.8,2888.0,0.1729]
[1645148061956,2.73471282,2888.9,2888.3,1.66642977]
[1645148062201,2.73471282,2888.9,2888.4,1.64830334]
[1645148062202,3.90058282,2888.9,2888.4,1.64830334]
[1645148062403,3.90058282,2888.9,2888.7,0.5]
[1645148062604,23.78,2888.8,2887.6,0.7088964]
[1645148062799,23.78,2888.8,2887.7,1.4760556]
[1645148063000,21.14617,2888.6,2887.7,1.61402508]
[1645148063199,21.14617,2888.6,2888.3,0.5]
[1645148063200,0.3,2888.5,2888.3,0.5]
[1645148063400,20.58,2888.5,2888.3,0.5]
[1645148063601,21.4462,2888.5,2888.3,0.5]
[1645148063801,22.61502114,2888.5,2888.3,0.5]
[1645148064200,1.46882114,2888.5,2888.3,0.5]
[1645148064803,1.46882114,2888.5,2888.3,0.5030962]
[1645148065403,2.5982,2889.1,2888.3,0.8030962]
[1645148065604,1.0,2889.6,2888.3,0.8030962]
[1645148065605,4.46868,2889.7,2888.3,0.8]
[1645148065948,3.5,2890.0,2888.4,1.64864542]
[1645148066156,3.5,2890.2,2888.8,0.5]
[1645148066354,1.08820157,2889.6,2888.8,0.5]
[1645148066653,1.08820157,2889.6,2888.9,1.77556833]
[1645148066855,1.08820157,2889.6,2889.0,1.47551561]
[1645148067056,4.9878,2890.3,2889.1,0.00309583]
[1645148067259,3.5,2890.7,2889.1,1.47861144]
[1645148067456,20.28,2890.6,2889.3,0.5]
[1645148067853,5.0154691,2890.9,2889.4,0.3]
[1645148067854,0.0154691,2890.9,2889.4,0.3]
[1645148068054,3.5,2890.9,2889.4,0.3]
[1645148068255,3.5,2890.9,2889.8,0.00309554]
[1645148068256,0.97279833,2890.1,2889.8,0.00309554]
[1645148069257,1.27279833,2890.1,2889.4,0.3]
[1645148069454,0.97279833,2890.1,2889.4,0.3]
[1645148069697,0.97279833,2890.1,2889.8,0.00309554]
[1645148069894,0.90207978,2890.5,2890.1,0.60085835]
[1645148070210,20.28,2890.1,2889.8,0.00309554]
[1645148070396,20.28,2890.1,2889.3,0.5]
[1645148070397,20.28,2889.9,2889.3,0.5]
[1645148070596,21.56178,2889.8,2889.3,0.5]
[1645148071199,21.86178,2889.8,2889.3,0.5]
[1645148071397,21.46205258,2889.7,2889.3,0.5]
[1645148071596,21.46205258,2889.7,2887.9,3.91497764]
[1645148071597,22.32781258,2889.7,2887.9,0.65327764]
[1645148071796,0.86587,2889.3,2887.9,0.65327764]
[1645148072099,0.86587,2889.3,2887.8,0.1729]
[1645148072100,1.7317,2889.2,2888.0,1.47578843]
[1645148072296,0.3,2889.1,2889.0,0.5]
[1645148072702,1.16585,2889.1,2889.0,0.5]
[1645148072897,0.3,2889.1,2889.0,0.5]
[1645148074161,0.85101176,2889.2,2889.0,0.5]
[1645148074355,3.63129,2890.2,2889.0,0.8]
[1645148074356,2.7658,2890.2,2889.0,0.8]
[1645148074553,2.315,2890.4,2889.1,0.3]
[1645148074755,23.78,2890.6,2889.1,0.3]
[1645148075164,5.01546863,2890.9,2889.1,0.3]
[1645148075165,1.74616863,2890.9,2889.1,0.4729]
[1645148075361,0.217,2891.5,2889.6,1.10140132]
[1645148075362,1.16654876,2890.7,2889.6,1.10140132]
[1645148075557,1.16654876,2890.7,2889.7,0.17587284]
[1645148075755,1.16654876,2890.7,2889.8,0.05830037]
[1645148075954,1.16654876,2890.7,2889.9,0.1729]
[1645148076158,1.16654876,2890.7,2890.0,0.5]
[1645148076357,1.16654876,2890.7,2889.9,0.1729]
[1645148076559,1.16654876,2890.7,2890.3,0.5]
[1645148076757,1.16654876,2890.7,2890.4,0.3]
[1645148077216,1.16654876,2890.7,2890.5,0.3]
[1645148077611,0.01485933,2890.9,2890.5,0.3]
[1645148077612,2.8205,2891.7,2890.5,0.3]
[1645148077814,1.73009,2891.8,2890.5,0.3]
[1645148078016,0.00297207,2890.9,2890.5,0.3]
[1645148078216,0.00297207,2890.9,2890.5,3.8]
[1645148078415,0.00297207,2890.9,2890.5,3.9729]
[1645148078616,0.00297207,2890.9,2890.6,1.0]
[1645148078914,1.16652042,2891.1,2890.7,0.5]
[1645148079115,0.00309481,2890.9,2890.7,0.8]
[1645148079518,0.00309481,2890.9,2890.7,0.3]
[1645148079715,0.00309481,2890.9,2890.7,0.8]
[1645148079916,0.00309481,2890.9,2890.7,0.3]
[1645148080118,1.73073,2890.9,2890.7,0.3]
[1645148080319,2.03073,2890.9,2890.7,0.3]
[1645148080520,2.03073,2890.9,2890.3,0.5]
[1645148080521,0.86543,2890.7,2890.4,0.3]
[1645148080717,1.73087,2890.6,2890.4,0.5]
[1645148080950,0.3,2890.5,2890.4,0.5]
[1645148081156,0.3,2890.5,2889.8,0.06139644]
[1645148081157,0.3030948,2890.9,2890.0,0.5]
[1645148081357,1.46652042,2891.1,2890.0,0.5]
[1645148081557,0.00309466,2890.9,2890.1,3.5]
[1645148081857,0.00309466,2890.9,2890.2,1.0]
[1645148082062,0.92429277,2890.6,2890.2,1.0]
[1645148082458,0.86513,2891.2,2889.9,1.31815347]
[1645148082459,2.5955,2892.0,2890.4,0.5]
[1645148082660,1.2441,2892.3,2890.5,3.5]
[1645148082863,0.00309463,2890.9,2890.6,4.37677976]
[1645148083061,0.00309463,2890.9,2890.7,4.97458976]
[1645148083262,7.268e-05,2891.0,2890.9,3.5]
[1645148083459,7.268e-05,2891.0,2890.9,3.63507087]
[1645148083658,7.268e-05,2891.0,2890.9,4.80797087]
[1645148083859,1.01709901,2891.9,2891.2,1.06038418]
[1645148084059,1.01709901,2891.9,2891.3,3.5]
[1645148084260,1.01709901,2891.9,2891.0,4.82507537]
[1645148084461,1.01709901,2891.9,2891.2,1.92428844]
[1645148084693,1.01709901,2891.9,2891.3,3.67316213]
[1645148084895,3.017055,2892.9,2891.4,1.14871533]
[1645148085196,0.042855,2892.9,2891.6,0.16902547]
[1645148085399,0.042855,2892.9,2891.6,1.0]
[1645148085604,0.042855,2892.9,2891.7,1.72898]
[1645148085798,0.042855,2892.9,2891.7,5.54404494]
[1645148086300,0.042855,2892.9,2892.2,0.16716457]
[1645148086503,0.00178323,2892.4,2892.2,0.5]
[1645148086699,0.00178323,2892.4,2892.3,0.34572567]
[1645148087301,0.042855,2892.9,2892.3,1.34572567]
[1645148087505,0.042855,2892.9,2892.4,3.5]
[1645148087506,0.00309264,2892.5,2892.4,3.5]
[1645148087903,0.00309264,2892.5,2892.4,4.67311539]
[1645148088542,0.05522372,2892.9,2892.4,4.67311539]
[1645148088543,0.042855,2892.9,2892.4,1.17311539]
[1645148088744,0.0030926,2892.6,2892.4,1.17311539]
[1645148088943,0.0030926,2892.6,2892.4,1.03747539]
[1645148089843,0.042855,2892.9,2892.4,0.17311539]
[1645148090042,0.00309258,2892.6,2892.4,0.17311539]
[1645148091052,5.86477,2892.8,2892.4,0.17311539]
[1645148091256,5.86477,2892.8,2892.4,1.539e-05]
[1645148091257,1.19360371,2892.6,2892.4,1.539e-05]
[1645148091452,2.35830371,2892.6,2892.4,1.539e-05]
[1645148091953,0.30309258,2892.6,2892.4,1.539e-05]
[1645148092200,0.3,2892.6,2892.4,1.539e-05]
[1645148092496,0.0028899,2892.6,2892.4,1.539e-05]
[1645148093400,0.042855,2892.9,2892.4,1.539e-05]
[1645148093598,0.0028899,2892.6,2892.4,1.539e-05]
[1645148093797,0.0028899,2892.6,2892.4,0.50001539]
[1645148094197,0.0028899,2892.6,2892.4,0.5]
[1645148094397,0.0028899,2892.6,2892.5,0.1356518]
[1645148094600,0.042855,2892.9,2892.5,0.1356518]
[1645148094799,0.0028899,2892.6,2892.5,0.1356518]
[1645148095802,2.89406,2892.8,2892.5,0.1356518]
[1645148096058,0.0029073,2892.7,2892.5,0.1356518]
[1645148096249,0.86463,2892.8,2892.5,0.1356518]
[1645148096456,2.636985,2892.9,2892.6,0.1728]
[1645148096457,0.042855,2892.9,2892.6,0.1728]
[1645148096651,0.042855,2892.9,2892.6,0.36872288]
[1645148096848,0.042855,2892.9,2892.8,0.14703677]
[1645148097251,1.13845125,2893.6,2892.9,0.05806286]
[1645148097449,0.00480787,2893.5,2892.9,0.05806286]
[1645148098556,0.00177169,2893.3,2892.9,0.05806286]
[1645148099054,0.00177169,2893.3,2893.0,0.1728]
[1645148099253,0.0045236,2893.7,2893.2,2.0]
[1645148099450,0.0045236,2893.7,2893.3,0.1728]
[1645148099702,0.01160519,2893.7,2893.6,0.90380913]
[1645148100004,3.50726226,2894.9,2894.0,0.86399]
[1645148100203,0.0090472,2894.9,2894.1,0.5]
[1645148100406,0.00480787,2894.8,2894.2,0.1765447]
[1645148100608,0.0090472,2894.9,2894.2,0.1765447]
[1645148101013,0.0090472,2894.9,2894.2,1.07394423]
[1645148101218,0.0090472,2894.9,2894.4,1.04385702]
[1645148101412,0.0090472,2894.9,2894.5,1.72747]
[1645148101611,0.00480787,2895.5,2894.5,1.89890371]
[1645148101812,3.5,2895.7,2894.5,2.89890371]
[1645148101813,0.00480787,2895.7,2894.5,2.89890371]
[1645148102013,0.00480787,2895.7,2894.5,1.89890371]
[1645148102214,0.04035807,2895.6,2894.9,0.98745108]
[1645148102514,0.04035807,2895.6,2894.3,1.330027]
[1645148102515,0.90423807,2895.6,2894.3,1.330027]
[1645148102712,0.90423807,2895.6,2894.3,1.157427]
[1645148102713,0.30480787,2895.5,2894.3,1.157427]
[1645148102911,0.00480787,2895.5,2894.3,1.157427]
[1645148103112,20.3378976,2895.9,2894.4,10.1726]
[1645148103113,0.00480787,2895.7,2894.4,10.1726]
[1645148103317,0.01237434,2895.5,2895.1,5.0]
[1645148103558,0.043498,2896.0,2895.4,1.72645]
[1645148103559,3.47e-06,2896.0,2895.4,1.72645]
[1645148103756,3.47e-06,2896.0,2895.5,0.86323]
[1645148103952,3.47e-06,2896.0,2895.4,0.1948818]
[1645148104158,0.86378347,2896.0,2895.1,1.76677901]
[1645148104352,3.47e-06,2896.0,2895.1,0.18207901]
[1645148104552,3.47e-06,2896.0,2894.7,4.6981404]
[1645148104754,3.47e-06,2896.0,2894.7,1.6981404]
[1645148104952,3.47e-06,2896.0,2894.8,0.1592761]
[1645148105152,3.47e-06,2896.0,2894.8,1.0229761]
[1645148105353,3.47e-06,2896.0,2894.8,1.00434971]
[1645148105554,3.47e-06,2896.0,2895.4,0.5]
[1645148105555,25.28,2895.9,2895.4,0.5]
[1645148105754,0.3,2895.8,2895.4,0.66303868]
[1645148105953,1.18322204,2895.6,2895.4,0.66303868]
[1645148106156,0.3,2895.8,2895.4,0.16303868]
[1645148106360,3.47e-06,2896.0,2894.9,0.36255693]
[1645148106557,3.47e-06,2896.0,2894.8,1.72723]
[1645148106754,3.47e-06,2896.0,2894.8,0.18228813]
[1645148106959,3.47e-06,2896.0,2894.8,0.19325842]
[1645148106960,5.0,2895.6,2894.8,0.19325842]
[1645148107208,0.86404,2895.5,2894.8,0.19325842]